Workbook

Sheet Ceny opcí
B3: Cena podkladu | D3: 149.71 | K3: Cena Call | M3: Strike | O3: Cena Put
B4: Entry datum | D4: 2017-05-03 | K4: =CallCena($D$3,M4,$D$14,$D$7,$D$6,$D$8) -> 5.918605921 | L4: ITM | M4: =M5-$D$11 -> 145 | N4: OTM | O4: =PutCena($D$3,M4,$D$14,$D$7,$D$6,$D$8) -> 1.097415698
B5: Exit datum | D5: 2017-05-19 | K5: =CallCena($D$3,M5,$D$14,$D$7,$D$6,$D$8) -> 5.203391536 | L5: ITM | M5: 146 | N5: OTM | O5: =PutCena($D$3,M5,$D$14,$D$7,$D$6,$D$8) -> 1.381434484
B6: Volatilita | D6: 0.235 | K6: =CallCena($D$3,M6,$D$14,$D$7,$D$6,$D$8) -> 4.53706096 | L6: ITM | M6: 147 | N6: OTM | O6: =PutCena($D$3,M6,$D$14,$D$7,$D$6,$D$8) -> 1.714337079
B7: Úroky | D7: 0.0175 | K7: =CallCena($D$3,M7,$D$14,$D$7,$D$6,$D$8) -> 3.92227061 | L7: ITM | M7: 148 | N7: OTM | O7: =PutCena($D$3,M7,$D$14,$D$7,$D$6,$D$8) -> 2.098779899
B8: Dividenda | D8: 0 | K8: =CallCena($D$3,M8,$D$14,$D$7,$D$6,$D$8) -> 3.360780031 | L8: ITM | M8: =M9-$D$11 -> 149 | N8: OTM | O8: =PutCena($D$3,M8,$D$14,$D$7,$D$6,$D$8) -> 2.536522492
K9: =CallCena($D$3,M9,$D$14,$D$7,$D$6,$D$8) -> 2.853373555 | L9: ATM | M9: =ROUND(D3,0) -> 150 | N9: ATM | O9: =PutCena($D$3,M9,$D$14,$D$7,$D$6,$D$8) -> 3.028349186
B10: Strike | D10: 150 | K10: =CallCena($D$3,M10,$D$14,$D$7,$D$6,$D$8) -> 2.399836523 | L10: OTM | M10: =M9+$D$11 -> 151 | N10: ITM | O10: =PutCena($D$3,M10,$D$14,$D$7,$D$6,$D$8) -> 3.574045326
B11: Krok Strike | D11: 1 | K11: =CallCena($D$3,M11,$D$14,$D$7,$D$6,$D$8) -> 1.99898649 | L11: OTM | M11: =M10+$D$11 -> 152 | N11: ITM | O11: =PutCena($D$3,M11,$D$14,$D$7,$D$6,$D$8) -> 4.172428463
K12: =CallCena($D$3,M12,$D$14,$D$7,$D$6,$D$8) -> 1.648754825 | L12: OTM | M12: 153 | N12: ITM | O12: =PutCena($D$3,M12,$D$14,$D$7,$D$6,$D$8) -> 4.821429969
B13: Do expirace (dny) | D13: =D5-D4 -> 16 | E13: =D5-D4 | K13: =CallCena($D$3,M13,$D$14,$D$7,$D$6,$D$8) -> 1.34631002 | L13: OTM | M13: 154 | N13: ITM | O13: =PutCena($D$3,M13,$D$14,$D$7,$D$6,$D$8) -> 5.518218335
B14: Život opce (roční) | D14: =(D5-D4)/365 -> 0.04383561644 | E14: =(D5-D4)/365 | K14: =CallCena($D$3,M14,$D$14,$D$7,$D$6,$D$8) -> 1.088211053 | L14: OTM | M14: 155 | N14: ITM | O14: =PutCena($D$3,M14,$D$14,$D$7,$D$6,$D$8) -> 6.259352539
K15: =CallCena($D$3,M15,$D$14,$D$7,$D$6,$D$8) -> 0.8705777013 | L15: OTM | M15: =M14+$D$11 -> 156 | N15: ITM | O15: =PutCena($D$3,M15,$D$14,$D$7,$D$6,$D$8) -> 7.040952358
B16: =CallCena(CenaPodkladu, Strike, ZivotOpce, Uroky, Volatilita, Dividenda)
B17: =CallCena(D3,D10,D14,D7,D6,D8) -> 2.853373555 | C17: =CallCena(D3;D10;D13;D7;D6;D8)
B19: =PutCena(CenaPodkladu, Strike, ZivotOpce, Uroky, Volatilita, Dividenda)
B20: =PutCena(D3,D10,D14,D7,D6,D8) -> 3.028349186 | C20: =PutCena(D3;D10;D13;D7;D6;D8)
B22: =DeltaCall(CenaPodkladu, Strike, ZivotOpce, Uroky, Volatilita, Dividenda)
B23: =DeltaCall(D3,D10,D14,D7,D6,D8) -> 0.5003432202 | C23: =DeltaCall(D3;D10;D14;D7;D6;D8)
B25: =DeltaPut(CenaPodkladu, Strike, ZivotOpce, Uroky, Volatilita, Dividenda)
B26: =DeltaPut(D3,D10,D14,D7,D6,D8) -> -0.4996567798 | C26: =DeltaPut(D3;D10;D14;D7;D6;D8)

Sheet Historická Volatilita
C2: WIKI/fb/4 | G2: bez ln | H2: s ln
C3: WIKI/FB | G3: (21 dnů perioda) | H3: (21 dnů perioda) | I3: bez ln | J3: s ln | M3: (30 obch. dnů perioda) | P3: (21 obch. dnů perioda)
B4: Date | C4: Close | E4: bez ln | F4: s ln | G4: měsíc | H4: měsíc | I4: 30? denní HV | L4: použití logaritmu | N4: 30 denní HV | Q4: 30 denní HV
B5: 2017-04-27 | C5: 147.7 | E5: =C5/C6-1 -> 0.007778384279 | F5: =LN(C5/C6) -> 0.007748288612 | G5: =STDEV(E5:E25) -> 0.006246342223 | H5: =STDEV(F5:F25) -> 0.006223877903 | I5: =G5*SQRT(252) -> 0.09915760875 | J5: =H5*SQRT(252) -> 0.09880099874 | L5: =LN(C5/C6) -> 0.007748288612 | M5: =STDEV(L5:L34) -> 0.006049509663 | N5: =M5*SQRT(252) -> 0.09603298874 | P5: =STDEV(L5:L25) -> 0.006223877903 | Q5: =P5*SQRT(252) -> 0.09880099874
B6: 2017-04-26 | C6: 146.56 | E6: =C6/C7-1 -> 0.0004778483173 | F6: =LN(C6/C7) -> 0.0004777341841 | G6: =STDEV(E6:E26) -> 0.006383733518 | H6: 0.006360143134 | I6: =G6*SQRT(252) -> 0.1013386279 | J6: =H6*SQRT(252) -> 0.1009641422 | L6: =LN(C6/C7) -> 0.0004777341841 | M6: =STDEV(L6:L35) -> 0.005950266738 | N6: =M6*SQRT(252) -> 0.09445755614 | P6: =STDEV(L6:L26) -> 0.006360143134 | Q6: =P6*SQRT(252) -> 0.1009641422 | S6: =LN(C10/C11)
B7: 2017-04-25 | C7: 146.49 | E7: 0.007011755001 | F7: 0.006987286956 | G7: =STDEV(E7:E27) -> 0.006393011695 | H7: 0.006369349885 | I7: 0.1014859144 | J7: 0.1011102949 | L7: 0.006987286956 | M7: 0.005984911992 | N7: 0.09500753249 | P7: 0.006369349885 | Q7: 0.1011102949
B8: 2017-04-24 | C8: 145.47 | E8: 0.01245824053 | F8: 0.01238127523 | G8: =STDEV(E8:E28) -> 0.006351608064 | H8: 0.006328050702 | I8: 0.1008286522 | J8: 0.1004546906 | L8: 0.01238127523 | M8: 0.005952405798 | N8: 0.09449151266 | P8: 0.006328050702 | Q8: 0.1004546906
B9: 2017-04-21 | C9: 143.68 | E9: -0.0008344923505 | F9: -0.0008348407331 | G9: =STDEV(E9:E29) -> 0.005897634402 | H9: 0.005877179034 | I9: 0.09362204371 | J9: 0.0932973248 | L9: -0.0008348407331 | M9: 0.005613938899 | N9: 0.08911851721 | P9: 0.005877179034 | Q9: 0.0932973248 | S9: =SMODCH.VÝBĚR(L11:L40)
B10: 2017-04-20 | C10: 143.8 | E10: 0.01075419976 | F10: 0.01069678462 | G10: =STDEV(E10:E30) -> 0.0060338759 | H10: 0.006013620193 | I10: 0.09578481044 | J10: 0.09546326105 | L10: =LN(C10/C11) -> 0.01069678462 | M10: 0.005616867878 | N10: 0.08916501332 | P10: 0.006013620193 | Q10: 0.09546326105
B11: 2017-04-19 | C11: 142.27 | E11: 0.009293416572 | F11: 0.009250498475 | G11: =STDEV(E11:E31) -> 0.006211408544 | H11: 0.006197827035 | I11: 0.09860305379 | J11: 0.09838745402 | L11: 0.009250498475 | M11: =STDEV(L11:L40) -> 0.005349503455 | N11: =M11*SQRT(252) -> 0.08492073467 | P11: 0.006197827035 | Q11: 0.09838745402
B12: 2017-04-18 | C12: 140.96 | E12: -0.003252722387 | F12: -0.003258023988 | G12: =STDEV(E12:E32) -> 0.005899499796 | H12: 0.005887082216 | I12: 0.09365165592 | J12: 0.09345453295 | L12: -0.003258023988 | M12: 0.005138338356 | N12: 0.08156859265 | P12: 0.005887082216 | Q12: 0.09345453295
B13: 2017-04-17 | C13: 141.42 | E13: 0.01456345505 | F13: 0.01445842643 | G13: =STDEV(E13:E33) -> 0.005851041552 | H13: 0.005838668893 | I13: 0.09288240514 | J13: 0.09268599527 | L13: 0.01445842643 | M13: 0.005081753401 | N13: 0.08067033435 | P13: 0.005838668893 | Q13: 0.09268599527
B14: 2017-04-13 | C14: 139.39 | E14: -0.001361226537 | F14: -0.001362153847 | G14: =STDEV(E14:E34) -> 0.00490599689 | H14: 0.00490476518 | I14: 0.07788028622 | J14: 0.07786073343 | L14: -0.001362153847 | M14: 0.004424686596 | N14: 0.07023972217 | P14: 0.00490476518 | Q14: 0.07786073343 | S14: =M11*ODMOCNINA(252)
B15: 2017-04-12 | C15: 139.58 | E15: -0.002429959977 | F15: -0.002432917121 | G15: =STDEV(E15:E35) -> 0.00493846865 | H15: 0.004937606915 | I15: 0.07839575943 | J15: 0.07838207981 | L15: -0.002432917121 | M15: 0.00452223233 | N15: 0.07178821269 | P15: 0.004937606915 | Q15: 0.07838207981
B16: 2017-04-11 | C16: 139.92 | E16: -0.007941009643 | F16: -0.007972707379 | G16: =STDEV(E16:E36) -> 0.00492845791 | H16: 0.004927611436 | I16: 0.07823684386 | J16: 0.0782234065 | L16: -0.007972707379 | M16: 0.005089859315 | N16: 0.08079901174 | P16: 0.004927611436 | Q16: 0.0782234065
B17: 2017-04-10 | C17: 141.04 | E17: 0.001846853246 | F17: 0.00184514991 | G17: =STDEV(E17:E37) -> 0.004713986462 | H17: 0.00471094793 | I17: 0.07483221518 | J17: 0.07478397998 | L17: 0.00184514991 | M17: 0.005000848571 | N17: 0.07938600998 | P17: 0.00471094793 | Q17: 0.07478397998
B18: 2017-04-07 | C18: 140.78 | E18: -0.00276262662 | F18: -0.002766449716 | G18: =STDEV(E18:E38) -> 0.00476090337 | H18: 0.004757898025 | I18: 0.075576998 | J18: 0.07552928962 | L18: -0.002766449716 | M18: 0.005119473567 | N18: 0.08126912341 | P18: 0.004757898025 | Q18: 0.07552928962
B19: 2017-04-06 | C19: 141.17 | E19: -0.004793796264 | F19: -0.004805323359 | G19: =STDEV(E19:E39) -> 0.004724558341 | H19: 0.004721947853 | I19: 0.07500003855 | J19: 0.07495859834 | L19: -0.004805323359 | M19: 0.0050641621 | N19: 0.08039108109 | P19: 0.004721947853 | Q19: 0.07495859834
B20: 2017-04-05 | C20: 141.85 | E20: 0.0008466803076 | F20: 0.000846322076 | G20: =STDEV(E20:E40) -> 0.004534244168 | H20: 0.004531619489 | I20: 0.07197889471 | J20: 0.07193722922 | L20: 0.000846322076 | M20: 0.005099648878 | N20: 0.08095441624 | P20: 0.004531619489 | Q20: 0.07193722922
B21: 2017-04-04 | C21: 141.73 | E21: -0.003865617093 | F21: -0.003873107901 | G21: =STDEV(E21:E41) -> 0.004563278756 | H21: 0.004560470845 | I21: 0.0724398045 | J21: 0.0723952303 | L21: -0.003873107901 | M21: 0.005912493177 | N21: 0.09385791946 | P21: 0.004560470845 | Q21: 0.0723952303
B22: 2017-04-03 | C22: 142.28 | E22: 0.001619148187 | F22: 0.00161783878 | G22: =STDEV(E22:E42) -> 0.004395756411 | H22: 0.004393073324 | I22: 0.06978046972 | J22: 0.06973787705 | L22: 0.00161783878 | M22: 0.005811166095 | N22: 0.09224940188 | P22: 0.004393073324 | Q22: 0.06973787705
B23: 2017-03-31 | C23: 142.05 | E23: -0.002527912366 | F23: -0.002531112931 | G23: =STDEV(E23:E43) -> 0.004403955783 | H23: 0.004401382199 | I23: 0.06991063072 | J23: 0.06986977634 | L23: -0.002531112931 | M23: 0.0058669763 | N23: 0.09313536142 | P23: 0.004401382199 | Q23: 0.06986977634
B24: 2017-03-30 | C24: 142.41 | E24: -0.001682439537 | F24: -0.001683856428 | G24: =STDEV(E24:E44) -> 0.004542017421 | H24: 0.004539930023 | I24: 0.07210229129 | J24: 0.07206915486 | L24: -0.001683856428 | M24: 0.005806745715 | N24: 0.09217923053 | P24: 0.004539930023 | Q24: 0.07206915486
B25: 2017-03-29 | C25: 142.65 | E25: 0.006278216704 | F25: 0.006258590803 | G25: =STDEV(E25:E45) -> 0.005183893792 | H25: 0.005173220667 | I25: 0.08229176278 | J25: 0.08212233217 | L25: 0.006258590803 | M25: 0.005843787007 | N25: 0.0927672428 | P25: 0.005173220667 | Q25: 0.08212233217
B26: 2017-03-28 | C26: 141.76 | E26: 0.0102622577 | F26: 0.01020995823 | G26: =STDEV(E26:E46) -> 0.005445697493 | H26: 0.005436051605 | I26: 0.0864477677 | J26: 0.08629464397 | L26: 0.01020995823 | M26: 0.005825945289 | N26: 0.09248401432 | P26: 0.005436051605 | Q26: 0.08629464397
B27: 2017-03-27 | C27: 140.32 | E27: -0.0001425110446 | F27: -0.0001425212003 | G27: =STDEV(E27:E47) -> 0.005244473389 | H27: 0.005236928606 | I27: 0.08325343407 | J27: 0.08313366436 | L27: -0.0001425212003 | M27: 0.005629014757 | N27: 0.08935783903 | P27: 0.005236928606 | Q27: 0.08313366436
B28: 2017-03-24 | C28: 140.34 | E28: 0.005805203182 | F28: 0.00578841792 | G28: =STDEV(E28:E48) -> 0.005234019996 | H28: 0.005226563587 | I28: 0.08308749161 | J28: 0.08296912477 | L28: 0.00578841792 | M28: 0.005624649931 | N28: 0.08928854958 | P28: 0.005226563587 | Q28: 0.08296912477
B29: 2017-03-23 | C29: 139.53 | E29: -0.0004298302171 | F29: -0.0004299226206 | G29: =STDEV(E29:E49) -> 0.005379191921 | H29: 0.005372106395 | I29: 0.08539202447 | J29: 0.08527954522 | L29: -0.0004299226206 | M29: 0.005575950073 | N29: 0.0885154633 | P29: 0.005372106395 | Q29: 0.08527954522
B30: 2017-03-22 | C30: 139.59 | E30: 0.007797270955 | F30: 0.007767029338 | G30: =STDEV(E30:E50) -> 0.006483585463 | H30: 0.006460299251 | I30: 0.1029237284 | J30: 0.1025540713 | L30: 0.007767029338 | M30: 0.006319243505 | N30: 0.1003148807 | P30: 0.006460299251 | Q30: 0.1025540713
B31: 2017-03-21 | C31: 138.51 | E31: -0.01021866514 | F31: -0.01027123413 | G31: =STDEV(E31:E51) -> 0.006349771518 | H31: 0.006326328954 | I31: 0.1007994979 | J31: 0.1004273587 | L31: -0.01027123413 | M31: 0.006251799187 | N31: 0.09924423537 | P31: 0.006326328954 | Q31: 0.1004273587
B32: 2017-03-20 | C32: 139.94 | E32: 0.0007151029748 | F32: 0.0007148474105 | G32: =STDEV(E32:E52) -> 0.005815830311 | H32: 0.00578612268 | I32: 0.09232344402 | J32: 0.09185184999 | L32: 0.0007148474105 | M32: 0.005945884966 | N32: 0.09438799766 | P32: 0.00578612268 | Q32: 0.09185184999
B33: 2017-03-17 | C33: 139.84 | E33: -0.001071505108 | F33: -0.00107207958 | G33: =STDEV(E33:E53) -> 0.005809182624 | H33: 0.00577976842 | I33: 0.09221791527 | J33: 0.09175097925 | L33: -0.00107207958 | M33: 0.005943171097 | N33: 0.09434491633 | P33: 0.00577976842 | Q33: 0.09175097925
B34: 2017-03-16 | C34: 139.99 | E34: 0.001932436301 | F34: 0.001930571548 | G34: =STDEV(E34:E54) -> 0.00588190967 | H34: 0.00585273998 | I34: 0.09337242132 | J34: 0.09290936686 | L34: 0.001930571548 | M34: 0.006989399707 | N34: 0.1109532806 | P34: 0.00585273998 | Q34: 0.09290936686
B35: 2017-03-15 | C35: 139.72 | E35: 0.002871088142 | F35: 0.002866974441 | G35: =STDEV(E35:E55) -> 0.005935595423 | H35: 0.005906181968 | I35: 0.09422465623 | J35: 0.09375773211 | L35: 0.002866974441 | M35: 0.007923422833 | N35: 0.1257804381 | P35: 0.005906181968 | Q35: 0.09375773211
B36: 2017-03-14 | C36: 139.32 | E36: -0.002005730659 | F36: -0.00200774483 | G36: =STDEV(E36:E56) -> 0.005967962296 | H36: 0.005938145814 | I36: 0.09473846441 | J36: 0.09426514244 | L36: -0.00200774483 | M36: 0.0080357296 | N36: 0.1275632528 | P36: 0.005938145814 | Q36: 0.09426514244
B37: 2017-03-13 | C37: 139.6 | E37: 0.005836155343 | F37: 0.005819190961 | G37: =STDEV(E37:E57) -> 0.005914355173 | H37: 0.00588457406 | I37: 0.09388747772 | J37: 0.09341471721 | L37: 0.005819190961 | M37: 0.008261546359 | N37: 0.1311479827 | P37: 0.00588457406 | Q37: 0.09341471721
B38: 2017-03-10 | C38: 138.79 | E38: 0.003978587963 | F38: 0.003970694312 | G38: =STDEV(E38:E58) -> 0.005864966111 | H38: 0.005834560475 | I38: 0.09310345066 | J38: 0.09262077616 | L38: 0.003970694312 | M38: 0.008304754378 | N38: 0.1318338887 | P38: 0.005834560475 | Q38: 0.09262077616
B39: 2017-03-09 | C39: 138.24 | E39: 0.003775776939 | F39: 0.003768666585 | G39: =STDEV(E39:E59) -> 0.00684925365 | H39: 0.006807053457 | I39: 0.1087285309 | J39: 0.1080586236 | L39: 0.003768666585 | M39: 0.008433656464 | N39: 0.1338801459 | P39: 0.006807053457 | Q39: 0.1080586236
B40: 2017-03-08 | C40: 137.72 | E40: 0.003058994902 | F40: 0.003054325696 | G40: =STDEV(E40:E60) -> 0.00689271255 | H40: 0.006849927378 | I40: 0.1094184196 | J40: 0.108739226 | L40: 0.003054325696 | M40: 0.008834866686 | N40: 0.1402491607 | P40: 0.006849927378 | Q40: 0.108739226
B41: 2017-03-07 | C41: 137.3 | E41: -0.0008732353369 | F41: -0.000873616829 | G41: =STDEV(E41:E61) -> 0.007023378919 | H41: 0.006980880976 | I41: 0.1114926839 | J41: 0.11081805 | L41: -0.000873616829 | M41: 0.008836435097 | N41: 0.1402740585 | P41: 0.006980880976 | Q41: 0.11081805
B42: 2017-03-06 | C42: 137.42 | E42: 0.001822555952 | F42: 0.001820897113 | G42: =STDEV(E42:E62) -> 0.006992631669 | H42: 0.006950303317 | I42: 0.1110045864 | J42: 0.1103326447 | L42: 0.001820897113 | M42: 0.009112272821 | N42: 0.1446528466 | P42: 0.006950303317 | Q42: 0.1103326447
B43: 2017-03-03 | C43: 137.17 | E43: 0.002997952618 | F43: 0.002993467719 | G43: =STDEV(E43:E63) -> 0.00828007169 | H43: 0.00826041952 | I43: 0.1314420632 | J43: 0.1311300946 | L43: 0.002993467719 | M43: 0.009191615241 | N43: 0.1459123684 | P43: 0.00826041952 | Q43: 0.1311300946
B44: 2017-03-02 | C44: 136.76 | E44: -0.004802794353 | F44: -0.004814364832 | G44: =STDEV(E44:E64) -> 0.009455336398 | H44: 0.009415651072 | I44: 0.150098812 | J44: 0.149468827 | L44: -0.004814364832 | M44: 0.009241796599 | N44: 0.1467089728 | P44: 0.009415651072 | Q44: 0.149468827
B45: 2017-03-01 | C45: 137.42 | E45: 0.01387044415 | F45: 0.01377512989 | G45: =STDEV(E45:E65) -> 0.009464394249 | H45: 0.009424750629 | I45: 0.150242601 | J45: 0.149613278 | L45: 0.01377512989 | M45: 0.009153473228 | N45: 0.1453068828 | P45: 0.009424750629 | Q45: 0.149613278
B46: 2017-02-28 | C46: 135.54 | E46: -0.006377831537 | F46: -0.006398256797 | G46: =STDEV(E46:E66) -> 0.009389938062 | H46: 0.009353167219 | I46: 0.1490606456 | J46: 0.1484769266 | L46: -0.006398256797 | M46: 0.008957991852 | N46: 0.1422037121 | P46: 0.009353167219 | Q46: 0.1484769266
B47: 2017-02-27 | C47: 136.41 | E47: 0.007161842882 | F47: 0.00713631868 | G47: =STDEV(E47:E67) -> 0.009323073711 | H47: 0.00928593998 | I47: 0.147999207 | J47: 0.1474097273 | L47: 0.00713631868 | M47: 0.009064261409 | N47: 0.143890689 | P47: 0.00928593998 | Q47: 0.1474097273
B48: 2017-02-24 | C48: 135.44 | E48: 0.0005910165485 | F48: 0.000590841967 | G48: =STDEV(E48:E68) -> 0.009426768876 | H48: 0.009389249587 | I48: 0.1496453167 | J48: 0.1490497164 | L48: 0.000590841967 | M48: 0.009028019037 | N48: 0.1433153592 | P48: 0.009389249587 | Q48: 0.1490497164
B49: 2017-02-23 | C49: 135.36 | E49: -0.005583308845 | F49: -0.005598953775 | G49: =STDEV(E49:E69) -> 0.009963423653 | H49: 0.009922008366 | I49: 0.1581644472 | J49: 0.1575069999 | L49: -0.005598953775 | M49: 0.009260673288 | N49: 0.147008631 | P49: 0.009922008366 | Q49: 0.1575069999
B50: 2017-02-22 | C50: 136.12 | E50: 0.01794795094 | F50: 0.01778878808 | G50: =STDEV(E50:E70) -> 0.009803951281 | H50: 0.009763454336 | I50: 0.1556329017 | J50: 0.1549900327 | L50: 0.01778878808 | M50: 0.009225933176 | N50: 0.1464571488 | P50: 0.009763454336 | Q50: 0.1549900327
B51: 2017-02-21 | C51: 133.72 | E51: 0.001422901221 | F51: 0.001421889856 | G51: =STDEV(E51:E71) -> 0.009584553515 | H51: 0.009548094606 | I51: 0.1521500702 | J51: 0.1515713029 | L51: 0.001421889856 | M51: 0.008959836198 | N51: 0.1422329902 | P51: 0.009548094606 | Q51: 0.1515713029
B52: 2017-02-17 | C52: 133.53 | E52: -0.002316198446 | F52: -0.002318884983 | G52: =STDEV(E52:E72) -> 0.009687105846 | H52: 0.009649980041 | I52: 0.1537780379 | J52: 0.1531886841 | L52: -0.002318884983 | M52: 0.009654266721 | N52: 0.153256733 | P52: 0.009649980041 | Q52: 0.1531886841
B53: 2017-02-16 | C53: 133.84 | E53: 0.002997601918 | F53: 0.002993118068 | G53: =STDEV(E53:E73) -> 0.009701428871 | H53: 0.009664265678 | I53: 0.1540054089 | J53: 0.1534154615 | L53: 0.002993118068 | M53: 0.009882193277 | N53: 0.1568749549 | P53: 0.009664265678 | Q53: 0.1534154615
B54: 2017-02-15 | C54: 133.44 | E54: -0.00306313037 | F54: -0.003067831356 | G54: =STDEV(E54:E74) -> 0.009707403203 | H54: 0.009669653314 | I54: 0.1541002485 | J54: 0.1535009876 | L54: -0.003067831356 | M54: 0.01010094039 | N54: 0.1603474576 | P54: 0.009669653314 | Q54: 0.1535009876
B55: 2017-02-14 | C55: 133.85 | E55: -0.001491980604 | F55: -0.001493094716 | G55: =STDEV(E55:E75) -> 0.009724128368 | H55: 0.009686372847 | I55: 0.1543657523 | J55: 0.153766402 | L55: -0.001493094716 | M55: 0.01019848386 | N55: 0.1618959123 | P55: 0.009686372847 | Q55: 0.153766402
B56: 2017-02-13 | C56: 134.05 | E56: -0.001043296818 | F56: -0.001043841431 | G56: =STDEV(E56:E76) -> 0.01000219888 | H56: 0.009964051358 | I56: 0.1587799848 | J56: 0.1581744117 | L56: -0.001043841431 | M56: 0.01056250283 | N56: 0.1676745342 | P56: 0.009964051358 | Q56: 0.1581744117
B57: 2017-02-10 | C57: 134.19 | E57: 0.0003727448934 | F57: 0.0003726754413 | G57: =STDEV(E57:E77) -> 0.009967745467 | H57: 0.009930750599 | I57: 0.1582330538 | J57: 0.1576457785 | L57: 0.0003726754413 | M57: 0.01065770124 | N57: 0.1691857622 | P57: 0.009930750599 | Q57: 0.1576457785
B58: 2017-02-09 | C58: 134.14 | E58: -0.0004470938897 | F58: -0.000447193866 | G58: =STDEV(E58:E78) -> 0.01022687434 | H58: 0.01018934454 | I58: 0.1623465971 | J58: 0.16175083 | L58: -0.000447193866 | M58: 0.01093164336 | N58: 0.1735344584 | P58: 0.01018934454 | Q58: 0.16175083
B59: 2017-02-08 | C59: 134.2 | E59: 0.01790048544 | F59: 0.01774215838 | G59: =STDEV(E59:E79) -> 0.01034220645 | H59: 0.01030438647 | I59: 0.1641774376 | J59: 0.1635770641 | L59: 0.01774215838 | M59: 0.01090054459 | N59: 0.1730407809 | P59: 0.01030438647 | Q59: 0.1635770641
B60: 2017-02-07 | C60: 131.84 | E60: -0.001665909435 | F60: -0.001667298605 | G60: =STDEV(E60:E80) -> 0.01000866164 | H60: 0.009976349523 | I60: 0.1588825779 | J60: 0.158369639 | L60: -0.001667298605 | M60: 0.010651046 | N60: 0.1690801136 | P60: 0.009976349523 | Q60: 0.158369639
B61: 2017-02-06 | C61: 132.06 | E61: 0.008245533669 | F61: 0.008211724977 | G61: =STDEV(E61:E81) -> 0.01079827758 | H61: 0.01075267293 | I61: 0.1714173423 | J61: 0.1706933909 | L61: 0.008211724977 | M61: 0.0110936356 | N61: 0.1761060057 | P61: 0.01075267293 | Q61: 0.1706933909
B62: 2017-02-03 | C62: 130.98 | E62: 0.001070009172 | F62: 0.00106943712 | G62: =STDEV(E62:E82) -> 0.01110272545 | H62: 0.01105396088 | I62: 0.1762503025 | J62: 0.1754761889 | L62: 0.00106943712 | M62: 0.01107806694 | N62: 0.1758588608 | P62: 0.01105396088 | Q62: 0.1754761889
B63: 2017-02-02 | C63: 130.84 | E63: -0.01793890265 | F63: -0.0181017553 | G63: =STDEV(E63:E83) -> 0.01131464373 | H63: 0.01126578224 | I63: 0.179614401 | J63: 0.1788387488 | L63: -0.0181017553 | M63: 0.01110143578 | N63: 0.1762298296 | P63: 0.01126578224 | Q63: 0.1788387488
B64: 2017-02-01 | C64: 133.23 | E64: 0.02232965009 | F64: 0.02208399368 | G64: =STDEV(E64:E84) -> 0.01016048398 | H64: 0.01009315646 | I64: 0.1612926829 | J64: 0.1602238916 | L64: 0.02208399368 | M64: 0.01048677338 | N64: 0.1664723665 | P64: 0.01009315646 | Q64: 0.1602238916
B65: 2017-01-31 | C65: 130.32 | E65: -0.005038937242 | F65: -0.005051675496 | G65: =STDEV(E65:E85) -> 0.01027256601 | H65: 0.0102192854 | I65: 0.1630719299 | J65: 0.1622261265 | L65: -0.005051675496 | M65: 0.01001039631 | N65: 0.158910115 | P65: 0.0102192854 | Q65: 0.1622261265
B66: 2017-01-30 | C66: 130.98 | E66: -0.009078529278 | F66: -0.009119990252 | G66: =STDEV(E66:E86) -> 0.01026425061 | H66: 0.01021092708 | I66: 0.1629399271 | J66: 0.1620934422 | L66: -0.009119990252 | M66: 0.009905778105 | N66: 0.1572493524 | P66: 0.01021092708 | Q66: 0.1620934422
B67: 2017-01-27 | C67: 132.18 | E67: -0.004518752824 | F67: -0.004528993249 | G67: =STDEV(E67:E87) -> 0.01027549957 | H67: 0.01022232169 | I67: 0.1631184988 | J67: 0.1622743261 | L67: -0.004528993249 | M67: 0.009672969089 | N67: 0.1535536239 | P67: 0.01022232169 | Q67: 0.1622743261
B68: 2017-01-26 | C68: 132.78 | E68: 0.009887435351 | F68: 0.009838874495 | G68: =STDEV(E68:E88) -> 0.01001794826 | H68: 0.0099663327 | I68: 0.1590299985 | J68: 0.1582106268 | L68: 0.009838874495 | M68: 0.01010917091 | N68: 0.1604781132 | P68: 0.0099663327 | Q68: 0.1582106268
B69: 2017-01-25 | C69: 131.48 | E69: 0.01630980907 | F69: 0.01617823287 | G69: =STDEV(E69:E89) -> 0.01009057216 | H69: 0.01003686692 | I69: 0.1601828672 | J69: 0.1593303228 | L69: 0.01617823287 | M69: 0.01068453943 | N69: 0.1696118052 | P69: 0.01003686692 | Q69: 0.1593303228
B70: 2017-01-24 | C70: 129.37 | E70: =C70/C71-1 -> 0.003412704568 | F70: =LN(C70/C71) -> 0.003406894507 | G70: =STDEV(E70:E90) -> 0.01059579354 | H70: 0.01055144135 | I70: =G70*SQRT(252) -> 0.1682030078 | J70: =H70*SQRT(252) -> 0.1674989387 | L70: =LN(C70/C71) -> 0.003406894507 | M70: =STDEV(L70:L99) -> 0.01041940082 | N70: =M70*SQRT(252) -> 0.1654028603 | P70: =STDEV(L70:L90) -> 0.01055144135 | Q70: =P70*SQRT(252) -> 0.1674989387
B71: 2017-01-23 | C71: 128.93 | E71: 0.01487720403 | F71: 0.01476762392 | G71: =STDEV(E71:E91) -> 0.01063976036 | H71: 0.01059447879 | I71: 0.1689009595 | J71: 0.1681821369 | L71: 0.01476762392 | M71: 0.01046390639 | N71: 0.1661093644 | P71: 0.01059447879 | Q71: 0.1681821369
B72: 2017-01-20 | C72: 127.04 | E72: -0.003998431987 | F72: -0.004006447089 | G72: =STDEV(E72:E92) -> 0.01038244718 | H72: 0.01033756633 | I72: 0.1648162394 | J72: 0.164103778 | L72: -0.004006447089 | M72: 0.01023730729 | N72: 0.1625122151 | P72: 0.01033756633 | Q72: 0.164103778
B73: 2017-01-19 | C73: 127.55 | E73: -0.00289243277 | F73: -0.002896623938 | G73: =STDEV(E73:E93) -> 0.01042878423 | H73: 0.01038404677 | I73: 0.1655518174 | J73: 0.1648416321 | L73: -0.002896623938 | M73: 0.01018470223 | N73: 0.1616771357 | P73: 0.01038404677 | Q73: 0.1648416321
B74: 2017-01-18 | C74: 127.92 | E74: 0.0003910221319 | F74: 0.0003909457026 | G74: =STDEV(E74:E94) -> 0.01053015554 | H74: 0.01048565599 | I74: 0.167161037 | J74: 0.1664546285 | L74: 0.0003909457026 | M74: 0.01046828198 | N74: 0.1661788247 | P74: 0.01048565599 | Q74: 0.1664546285
B75: 2017-01-17 | C75: 127.87 | E75: -0.003662147421 | F75: -0.003668869499 | G75: =STDEV(E75:E95) -> 0.01051477102 | H75: 0.0104709069 | I75: 0.1669168153 | J75: 0.166220494 | L75: -0.003668869499 | M75: 0.01045389377 | N75: 0.1659504188 | P75: 0.0104709069 | Q75: 0.166220494
B76: 2017-01-13 | C76: 128.34 | E76: 0.01358395198 | F76: 0.01349251721 | G76: =STDEV(E76:E96) -> 0.01044301123 | H76: 0.01039940528 | I76: 0.1657776639 | J76: 0.1650854409 | L76: 0.01349251721 | M76: 0.01191590083 | N76: 0.1891590615 | P76: 0.01039940528 | Q76: 0.1650854409
B77: 2017-01-12 | C77: 126.62 | E77: 0.004203346816 | F77: 0.004194537431 | G77: =STDEV(E77:E97) -> 0.01097428597 | H77: 0.0109201952 | I77: 0.174211389 | J77: 0.1733527246 | L77: 0.004194537431 | M77: 0.0124550073 | N77: 0.1977171113 | P77: 0.0109201952 | Q77: 0.1733527246
B78: 2017-01-11 | C78: 126.09 | E78: 0.01399276236 | F78: 0.01389576744 | G78: =STDEV(E78:E98) -> 0.01176444776 | H78: 0.01171881832 | I78: 0.1867548186 | J78: 0.1860304736 | L78: 0.01389576744 | M78: 0.01245240748 | N78: 0.1976758404 | P78: 0.01171881832 | Q78: 0.1860304736
B79: 2017-01-10 | C79: 124.35 | E79: -0.004403522818 | F79: -0.004413246882 | G79: =STDEV(E79:E99) -> 0.01151059185 | H79: 0.0114663029 | I79: 0.1827249808 | J79: 0.1820219156 | L79: -0.004413246882 | M79: 0.01223266918 | N79: 0.1941876031 | P79: 0.0114663029 | Q79: 0.1820219156
B80: 2017-01-09 | C80: 124.9 | E80: 0.01207357589 | F80: 0.01200127167 | G80: =STDEV(E80:E100) -> 0.01147642891 | H80: 0.01143449671 | I80: 0.1821826611 | J80: 0.181517008 | L80: 0.01200127167 | M80: 0.01222387265 | N80: 0.1940479625 | P80: 0.01143449671 | Q80: 0.181517008
B81: 2017-01-06 | C81: 123.41 | E81: 0.02270655507 | F81: 0.02245259838 | G81: =STDEV(E81:E101) -> 0.01129831131 | H81: 0.01125666115 | I81: 0.1793551317 | J81: 0.178693956 | L81: 0.02245259838 | M81: 0.01209774941 | N81: 0.1920458182 | P81: 0.01125666115 | Q81: 0.178693956
B82: 2017-01-05 | C82: 120.67 | E82: 0.01668211307 | F82: 0.01654449502 | G82: =STDEV(E82:E102) -> 0.01031806648 | H82: 0.01029141879 | I82: 0.1637942276 | J82: 0.1633712086 | L82: 0.01654449502 | M82: 0.01137435087 | N82: 0.1805622223 | P82: 0.01029141879 | Q82: 0.1633712086
B83: 2017-01-04 | C83: 118.69 | E83: 0.01565976382 | F83: 0.01553841494 | G83: =STDEV(E83:E103) -> 0.01038727885 | H83: 0.01035924059 | I83: 0.1648929398 | J83: 0.1644478462 | L83: 0.01553841494 | M83: 0.01320580915 | N83: 0.2096357213 | P83: 0.01035924059 | Q83: 0.1644478462
B84: 2017-01-03 | C84: 116.86 | E84: 0.01573229031 | F84: 0.01560982064 | G84: =STDEV(E84:E104) -> 0.009868307121 | H84: 0.009844474805 | I84: 0.156654519 | J84: 0.1562761927 | L84: 0.01560982064 | M84: 0.01295027491 | N84: 0.2055792409 | P84: 0.009844474805 | Q84: 0.1562761927
B85: 2016-12-30 | C85: 115.05 | E85: -0.01117318436 | F85: -0.01123607327 | G85: =STDEV(E85:E105) -> 0.01109566702 | H85: 0.01112318657 | I85: 0.1761382534 | J85: 0.1765751128 | L85: -0.01123607327 | M85: 0.01282681275 | N85: 0.2036193399 | P85: 0.01112318657 | Q85: 0.1765751128
B86: 2016-12-29 | C86: 116.35 | E86: -0.004875128293 | F86: -0.004887050495 | G86: =STDEV(E86:E106) -> 0.01166283049 | H86: 0.01170069306 | I86: 0.1851416943 | J86: 0.185742744 | L86: -0.004887050495 | M86: 0.01273287581 | N86: 0.2021281372 | P86: 0.01170069306 | Q86: 0.185742744
B87: 2016-12-28 | C87: 116.92 | E87: -0.009236505381 | F87: -0.009279426395 | G87: =STDEV(E87:E107) -> 0.0117005613 | H87: 0.01174043235 | I87: 0.1857406523 | J87: 0.1863735858 | L87: -0.009279426395 | M87: 0.01313638564 | N87: 0.2085336572 | P87: 0.01174043235 | Q87: 0.1863735858
B88: 2016-12-27 | C88: 118.01 | E88: 0.006310224269 | F88: 0.006290398165 | G88: =STDEV(E88:E108) -> 0.01156252158 | H88: 0.01160404543 | I88: 0.1835493398 | J88: 0.1842085105 | L88: 0.006290398165 | M88: 0.01445265532 | N88: 0.2294287906 | P88: 0.01160404543 | Q88: 0.1842085105
B89: 2016-12-23 | C89: 117.27 | E89: -0.001107325383 | F89: -0.001107938921 | G89: =STDEV(E89:E109) -> 0.01145814228 | H89: 0.01149795183 | I89: 0.1818923698 | J89: 0.1825243268 | L89: -0.001107938921 | M89: 0.01463509913 | N89: 0.2323249963 | P89: 0.01149795183 | Q89: 0.1825243268
B90: 2016-12-22 | C90: 117.4 | E90: -0.01377688172 | F90: -0.01387266369 | G90: =STDEV(E90:E110) -> 0.0114881062 | H90: 0.01152689392 | I90: 0.1823680322 | J90: 0.1829837682 | L90: -0.01387266369 | M90: 0.01502085162 | N90: 0.2384486272 | P90: 0.01152689392 | Q90: 0.1829837682
B91: 2016-12-21 | C91: 119.04 | E91: -0.0004198505332 | F91: -0.0004199386951 | G91: =STDEV(E91:E111) -> 0.01114667373 | H91: 0.01118446552 | I91: 0.1769479599 | J91: 0.1775478859 | L91: -0.0004199386951 | M91: 0.01489955253 | N91: 0.2365230639 | P91: 0.01118446552 | Q91: 0.1775478859
B92: 2016-12-20 | C92: 119.09 | E92: -0.001257967125 | F92: -0.00125875903 | G92: =STDEV(E92:E112) -> 0.01438054014 | H92: 0.01430854201 | I92: 0.2282839976 | J92: 0.2271410627 | L92: -0.00125875903 | M92: 0.01526675012 | N92: 0.2423521449 | P92: 0.01430854201 | Q92: 0.2271410627
B93: 2016-12-19 | C93: 119.24 | E93: -0.005255693668 | F93: -0.005269553409 | G93: =STDEV(E93:E113) -> 0.01446664239 | H93: 0.01439380091 | I93: 0.2296508284 | J93: 0.2284945057 | L93: -0.005269553409 | M93: 0.01543240152 | N93: 0.2449817793 | P93: 0.01439380091 | Q93: 0.2284945057
B94: 2016-12-16 | C94: 119.87 | E94: -0.005805755992 | F94: -0.00582267491 | G94: =STDEV(E94:E114) -> 0.01461895745 | H94: 0.01454968737 | I94: 0.232068755 | J94: 0.2309691265 | L94: -0.00582267491 | M94: 0.0154505914 | N94: 0.2452705348 | P94: 0.01454968737 | Q94: 0.2309691265
B95: 2016-12-15 | C95: 120.57 | E95: 0.002994759171 | F95: 0.002990283813 | G95: =STDEV(E95:E115) -> 0.01466113738 | H95: 0.01459192243 | I95: 0.2327383407 | J95: 0.2316395873 | L95: 0.002990283813 | M95: 0.01871952217 | N95: 0.297163202 | P95: 0.01459192243 | Q95: 0.2316395873
B96: 2016-12-14 | C96: 120.21 | E96: -0.0008311861026 | F96: -0.0008315317293 | G96: =STDEV(E96:E116) -> 0.01512155245 | H96: 0.01505067658 | I96: 0.2400472034 | J96: 0.2389220837 | L96: -0.0008315317293 | M96: 0.01893078087 | N96: 0.3005168298 | P96: 0.01505067658 | Q96: 0.2389220837
B97: 2016-12-13 | C97: 120.31 | E97: 0.021567462 | F97: 0.02133817519 | G97: =STDEV(E97:E117) -> 0.01697051609 | H97: 0.01695298185 | I97: 0.2693985911 | J97: 0.2691202437 | L97: 0.02133817519 | M97: 0.01899786314 | N97: 0.3015817278 | P97: 0.01695298185 | Q97: 0.2691202437
B98: 2016-12-12 | C98: 117.77 | E98: -0.0159592246 | F98: -0.01608794437 | G98: =STDEV(E98:E118) -> 0.01657770399 | H98: 0.01656491156 | I98: 0.2631628925 | J98: 0.2629598188 | L98: -0.01608794437 | M98: 0.01844282662 | N98: 0.2927707963 | P98: 0.01656491156 | Q98: 0.2629598188
B99: 2016-12-09 | C99: 119.68 | E99: 0.006475485661 | F99: 0.006454609777 | G99: =STDEV(E99:E119) -> 0.01674400377 | H99: 0.01673457865 | I99: 0.2658028196 | J99: 0.2656532003 | L99: 0.006454609777 | M99: 0.01850827045 | N99: 0.2938096848 | P99: 0.01673457865 | Q99: 0.2656532003
B100: 2016-12-08 | C100: 118.91 | E100: 0.008139041967 | F100: 0.008106098596 | G100: =STDEV(E100:E120) -> 0.01671544867 | H100: 0.01670123925 | I100: 0.2653495214 | J100: 0.2651239539 | L100: 0.008106098596 | M100: 0.01847669964 | N100: 0.2933085139 | P100: 0.01670123925 | Q100: 0.2651239539
B101: 2016-12-07 | C101: 117.95 | E101: 0.005455630381 | F101: 0.005440802336 | G101: =STDEV(E101:E121) -> 0.01708747168 | H101: 0.01707028789 | I101: 0.2712552036 | J101: 0.2709824195 | L101: 0.005440802336 | M101: 0.01838326773 | N101: 0.2918253282 | P101: 0.01707028789 | Q101: 0.2709824195
B102: 2016-12-06 | C102: 117.31 | E102: -0.001021885379 | F102: -0.001022407859 | G102: =STDEV(E102:E122) -> 0.01726446614 | H102: 0.01724774487 | I102: 0.2740649036 | J102: 0.2737994616 | L102: -0.001022407859 | M102: 0.01830977375 | N102: 0.2906586474 | P102: 0.01724774487 | Q102: 0.2737994616
B103: 2016-12-05 | C103: 117.43 | E103: 0.01759098787 | F103: 0.0174380573 | G103: =STDEV(E103:E123) -> 0.01734168141 | H103: 0.01732761951 | I103: 0.2752906579 | J103: 0.2750674322 | L103: 0.0174380573 | M103: 0.01846449439 | N103: 0.2931147614 | P103: 0.01732761951 | Q103: 0.2750674322
B104: 2016-12-02 | C104: 115.4 | E104: 0.002606429192 | F104: 0.002603038346 | G104: =STDEV(E104:E124) -> 0.02060609876 | H104: 0.0207868141 | I104: 0.3271116768 | J104: 0.329980444 | L104: 0.002603038346 | M104: 0.01840139603 | N104: 0.2921131061 | P104: 0.0207868141 | Q104: 0.329980444
B105: 2016-12-01 | C105: 115.1 | E105: -0.02803580476 | F105: -0.02843631138 | G105: =STDEV(E105:E125) -> 0.02074520891 | H105: 0.02091909072 | I105: 0.329319982 | J105: 0.3320802703 | L105: -0.02843631138 | M105: 0.01836965481 | N105: 0.2916092298 | P105: 0.02091909072 | Q105: 0.3320802703
B106: 2016-11-30 | C106: 118.42 | E106: -0.02026971126 | F106: -0.02047796077 | G106: =STDEV(E106:E126) -> 0.02014580355 | H106: 0.02031190979 | I106: 0.319804717 | J106: 0.3224415717 | L106: -0.02047796077 | M106: 0.0179985225 | N106: 0.285717687 | P106: 0.02031190979 | Q106: 0.3224415717
B107: 2016-11-29 | C107: 120.87 | E107: 0.003820280708 | F107: 0.003813001967 | G107: =STDEV(E107:E127) -> 0.01982598216 | H107: 0.01999546818 | I107: 0.3147277098 | J107: 0.317418217 | L107: 0.003813001967 | M107: 0.01778129379 | N107: 0.2822692881 | P107: 0.01999546818 | Q107: 0.317418217
B108: 2016-11-28 | C108: 120.41 | E108: 0.0002492108324 | F108: 0.0002491797845 | G108: =STDEV(E108:E128) -> 0.0200739504 | H108: 0.02024268005 | I108: 0.3186640836 | J108: 0.3213425837 | L108: 0.0002491797845 | M108: 0.01775020274 | N108: 0.281775733 | P108: 0.02024268005 | Q108: 0.3213425837
B109: 2016-11-25 | C109: 120.38 | E109: -0.003806686528 | F109: -0.003813950399 | G109: =STDEV(E109:E129) -> 0.02011175597 | H109: 0.02027579603 | I109: 0.3192642283 | J109: 0.3218682836 | L109: -0.003813950399 | M109: 0.0177512127 | N109: 0.2817917657 | P109: 0.02027579603 | Q109: 0.3218682836
B110: 2016-11-23 | C110: 120.84 | E110: -0.005186465794 | F110: -0.005199962194 | G110: =STDEV(E110:E130) -> 0.02014897235 | H110: 0.02031047805 | I110: 0.31985502 | J110: 0.3224188435 | L110: -0.005199962194 | M110: 0.01780263896 | N110: 0.2826081323 | P110: 0.02031047805 | Q110: 0.3224188435
B111: 2016-11-22 | C111: 121.47 | E111: -0.002463661 | F111: -0.002466700807 | G111: =STDEV(E111:E131) -> 0.02016091281 | H111: 0.02032137708 | I111: 0.3200445691 | J111: 0.3225918603 | L111: -0.002466700807 | M111: 0.01780442614 | N111: 0.2826365028 | P111: 0.02032137708 | Q111: 0.3225918603
B112: 2016-11-21 | C112: 121.77 | E112: 0.04059135191 | F112: 0.03978915916 | G112: =STDEV(E112:E132) -> 0.02036988497 | H112: 0.02053321001 | I112: 0.3233618992 | J112: 0.3259546038 | L112: 0.03978915916 | M112: 0.01787232985 | N112: 0.2837144408 | P112: 0.02053321001 | Q112: 0.3259546038
B113: 2016-11-18 | C113: 117.02 | E113: -0.006537057475 | F113: -0.006558517611 | G113: =STDEV(E113:E133) -> 0.01829617023 | H113: 0.01855492266 | I113: 0.2904426982 | J113: 0.2945502657 | L113: -0.006558517611 | M113: 0.01619661905 | N113: 0.2571133565 | P113: 0.01855492266 | Q113: 0.2945502657
B114: 2016-11-17 | C114: 117.79 | E114: 0.01246346914 | F114: 0.01238643949 | G114: =STDEV(E114:E134) -> 0.018311836 | H114: 0.01857293814 | I114: 0.2906913846 | J114: 0.2948362527 | L114: 0.01238643949 | M114: 0.01621100494 | N114: 0.2573417254 | P114: 0.01857293814 | Q114: 0.2948362527
B115: 2016-11-16 | C115: 116.34 | E115: -0.007337883959 | F115: -0.00736493866 | G115: =STDEV(E115:E135) -> 0.01828955477 | H115: 0.01855110736 | I115: 0.2903376811 | J115: 0.2944896998 | L115: -0.00736493866 | M115: 0.01598231615 | N115: 0.2537114035 | P115: 0.01855110736 | Q115: 0.2944896998
B116: 2016-11-15 | C116: 117.2 | E116: 0.01842196733 | F116: 0.01825433846 | G116: =STDEV(E116:E136) -> 0.0184818936 | H116: 0.01874660493 | I116: 0.2933909653 | J116: 0.2975931274 | L116: 0.01825433846 | M116: 0.0159937501 | N116: 0.2538929118 | P116: 0.01874660493 | Q116: 0.2975931274
B117: 2016-11-14 | C117: 115.08 | E117: -0.03310368005 | F117: -0.03366400753 | G117: =STDEV(E117:E137) -> 0.01777036905 | H117: 0.01804620775 | I117: 0.2820958633 | J117: 0.2864746669 | L117: -0.03366400753 | M117: 0.01548305661 | N117: 0.2457859039 | P117: 0.01804620775 | Q117: 0.2864746669
B118: 2016-11-11 | C118: 119.02 | E118: -0.01473509934 | F118: -0.01484473928 | G118: =STDEV(E118:E138) -> 0.01657180785 | H118: 0.01683394041 | I118: 0.2630692941 | J118: 0.2672305194 | L118: -0.01484473928 | M118: 0.01446552866 | N118: 0.2296331485 | P118: 0.01683394041 | Q118: 0.2672305194
B119: 2016-11-10 | C119: 120.8 | E119: -0.0193213184 | F119: -0.01951041476 | G119: =STDEV(E119:E139) -> 0.01642989908 | H119: 0.01669348262 | I119: 0.2608165623 | J119: 0.2650008212 | L119: -0.01951041476 | M119: 0.01429031124 | N119: 0.2268516582 | P119: 0.01669348262 | Q119: 0.2650008212
B120: 2016-11-09 | C120: 123.18 | E120: -0.008372242795 | F120: -0.008407486872 | G120: =STDEV(E120:E140) -> 0.01601751836 | H120: 0.01628637292 | I120: 0.2542702213 | J120: 0.258538155 | L120: -0.008407486872 | M120: 0.01396776281 | N120: 0.2217313606 | P120: 0.01628637292 | Q120: 0.258538155
B121: 2016-11-08 | C121: 124.22 | E121: 0.0169463774 | F121: 0.01680438943 | G121: =STDEV(E121:E141) -> 0.01606481976 | H121: 0.01633280898 | I121: 0.2550211077 | J121: 0.2592753047 | L121: 0.01680438943 | M121: 0.01394530322 | N121: 0.2213748257 | P121: 0.01633280898 | Q121: 0.2592753047
B122: 2016-11-07 | C122: 122.15 | E122: 0.0115942029 | F122: 0.01152750517 | G122: =STDEV(E122:E142) -> 0.01570819427 | H122: 0.01598611667 | I122: 0.2493598535 | J122: 0.2537717349 | L122: 0.01152750517 | M122: 0.013719001 | N122: 0.2177823893 | P122: 0.01598611667 | Q122: 0.2537717349
B123: 2016-11-04 | C123: 120.75 | E123: 0.00625 | F123: 0.006230549751 | G123: =STDEV(E123:E143) -> 0.01541452974 | H123: 0.01569692908 | I123: 0.2446980736 | J123: 0.2491810242 | L123: 0.006230549751 | M123: 0.01351387353 | N123: 0.2145260917 | P123: 0.01569692908 | Q123: 0.2491810242
B124: 2016-11-03 | C124: 120 | E124: -0.05638122199 | F124: -0.05803303125 | G124: =STDEV(E124:E144) -> 0.01531726966 | H124: 0.01560038199 | I124: 0.2431541177 | J124: 0.2476483866 | L124: -0.05803303125 | M124: 0.0136742474 | N124: 0.2170719478 | P124: 0.01560038199 | Q124: 0.2476483866
B125: 2016-11-02 | C125: 127.17 | E125: -0.01799227799 | F125: -0.01815610711 | G125: =STDEV(E125:E145) -> 0.009277339538 | H125: 0.009281267772 | I125: 0.1472731995 | J125: 0.1473355583 | L125: -0.01815610711 | M125: 0.008822526818 | N125: 0.1400532714 | P125: 0.009281267772 | Q125: 0.1473355583
B126: 2016-11-01 | C126: 129.5 | E126: -0.01137491412 | F126: -0.01144010327 | G126: =STDEV(E126:E146) -> 0.008421510535 | H126: 0.008411572068 | I126: 0.1336873352 | J126: 0.133529567 | L126: -0.01144010327 | M126: 0.008392789544 | N126: 0.1332314036 | P126: 0.008411572068 | Q126: 0.133529567
B127: 2016-10-31 | C127: 130.99 | E127: -0.002285017899 | F127: -0.002287632536 | G127: =STDEV(E127:E147) -> 0.008012119377 | H127: 0.007999703512 | I127: 0.1271884521 | J127: 0.1269913563 | L127: -0.002287632536 | M127: 0.008099612555 | N127: 0.1285773632 | P127: 0.007999703512 | Q127: 0.1269913563
B128: 2016-10-28 | C128: 131.29 | E128: 0.01233711157 | F128: 0.0122616296 | G128: =STDEV(E128:E148) -> 0.007976159533 | H128: 0.007964347927 | I128: 0.1266176073 | J128: 0.1264301038 | L128: 0.0122616296 | M128: 0.008113493123 | N128: 0.1287977104 | P128: 0.007964347927 | Q128: 0.1264301038
B129: 2016-10-27 | C129: 129.69 | E129: -0.0103021978 | F129: -0.01035563276 | G129: =STDEV(E129:E149) -> 0.007834893322 | H129: 0.007826789982 | I129: 0.1243750757 | J129: 0.1242464391 | L129: -0.01035563276 | M129: 0.007869798426 | N129: 0.124929177 | P129: 0.007826789982 | Q129: 0.1242464391
B130: 2016-10-26 | C130: 131.04 | E130: -0.009448937939 | F130: -0.00949386237 | G130: =STDEV(E130:E150) -> 0.007494733277 | H130: 0.007484901054 | I130: 0.1189752024 | J130: 0.1188191207 | L130: -0.00949386237 | M130: 0.007637612282 | N130: 0.1212433363 | P130: 0.007484901054 | Q130: 0.1188191207
B131: 2016-10-25 | C131: 132.29 | E131: -0.007427971188 | F131: -0.007455695944 | G131: =STDEV(E131:E151) -> 0.007402601775 | H131: 0.007389385351 | I131: 0.1175126601 | J131: 0.1173028559 | L131: -0.007455695944 | M131: 0.007406890611 | N131: 0.1175807433 | P131: 0.007389385351 | Q131: 0.1173028559
B132: 2016-10-24 | C132: 133.28 | E132: 0.009161808132 | F132: 0.009120093363 | G132: =STDEV(E132:E152) -> 0.007271948463 | H132: 0.007257777353 | I132: 0.1154386031 | J132: 0.1152136437 | L132: 0.009120093363 | M132: 0.007609838735 | N132: 0.1208024449 | P132: 0.007257777353 | Q132: 0.1152136437
B133: 2016-10-21 | C133: 132.07 | E133: 0.01592307692 | F133: 0.0157976346 | G133: =STDEV(E133:E153) -> 0.008088815501 | H133: 0.008088190488 | I133: 0.1284059653 | J133: 0.1283960435 | L133: 0.0157976346 | M133: 0.007751885056 | N133: 0.1230573603 | P133: 0.008088190488 | Q133: 0.1283960435
B134: 2016-10-20 | C134: 130 | E134: =C134/C135-1 -> -0.0008454384751 | F134: =LN(C134/C135) -> -0.0008457960598 | G134: =STDEV(E134:E154) -> 0.007307869854 | H134: 0.007317571945 | I134: =G134*SQRT(252) -> 0.1160088375 | J134: =H134*SQRT(252) -> 0.1161628534 | L134: =LN(C134/C135) -> -0.0008457960598 | M134: =STDEV(L134:L163) -> 0.008608097148 | N134: =M134*SQRT(252) -> 0.1366493059 | P134: =STDEV(L134:L154) -> 0.007317571945 | Q134: =P134*SQRT(252) -> 0.1161628534
B135: 2016-10-19 | C135: 130.11 | E135: 0.01197791087 | F135: 0.01190674342 | G135: =STDEV(E135:E155) -> 0.007624827064 | H135: 0.007632781688 | I135: 0.1210403772 | J135: 0.1211666529 | L135: 0.01190674342 | M135: 0.008674614066 | N135: 0.1377052292 | P135: 0.007632781688 | Q135: 0.1211666529
B136: 2016-10-18 | C136: 128.57 | E136: 0.008075897758 | F136: 0.008043462209 | G136: =STDEV(E136:E156) -> 0.007162724741 | H136: 0.007174789421 | I136: 0.1137047302 | J136: 0.1138962511 | L136: 0.008043462209 | M136: 0.0085942506 | N136: 0.1364294987 | P136: 0.007174789421 | Q136: 0.1138962511
B137: 2016-10-17 | C137: 127.54 | E137: -0.002658742571 | F137: -0.002662283305 | G137: =STDEV(E137:E157) -> 0.006947057332 | H137: 0.006959615889 | I137: 0.1102811163 | J137: 0.1104804772 | L137: -0.002662283305 | M137: 0.009665958446 | N137: 0.1534423334 | P137: 0.006959615889 | Q137: 0.1104804772
B138: 2016-10-14 | C138: 127.88 | E138: 0.000469410108 | F138: 0.0004692999695 | G138: =STDEV(E138:E158) -> 0.007054724752 | H138: 0.007067745876 | I138: 0.1119902836 | J138: 0.1121969875 | L138: 0.0004692999695 | M138: 0.009659365855 | N138: 0.1533376793 | P138: 0.007067745876 | Q138: 0.1121969875
B139: 2016-10-13 | C139: 127.82 | E139: -0.009531189461 | F139: -0.009576901942 | G139: =STDEV(E139:E159) -> 0.007128142822 | H139: 0.00714138308 | I139: 0.1131557593 | J139: 0.1133659419 | L139: -0.009576901942 | M139: 0.009659369679 | N139: 0.15333774 | P139: 0.00714138308 | Q139: 0.1133659419
B140: 2016-10-12 | C140: 129.05 | E140: 0.001319056487 | F140: 0.001318187296 | G140: =STDEV(E140:E160) -> 0.00683485234 | H140: 0.006847448447 | I140: 0.1084999172 | J140: 0.1086998742 | L140: 0.001318187296 | M140: 0.009475647121 | N140: 0.1504212348 | P140: 0.006847448447 | Q140: 0.1086998742
B141: 2016-10-11 | C141: 128.88 | E141: -0.01044226044 | F141: -0.01049716339 | G141: =STDEV(E141:E161) -> 0.007331817738 | H141: 0.00734686684 | I141: 0.1163889984 | J141: 0.1166278955 | L141: -0.01049716339 | M141: 0.009546330184 | N141: 0.1515432936 | P141: 0.00734686684 | Q141: 0.1166278955
B142: 2016-10-10 | C142: 130.24 | E142: 0.009690673696 | F142: 0.009644020277 | G142: =STDEV(E142:E162) -> 0.007392824908 | H142: 0.007401490476 | I142: 0.1173574572 | J142: 0.1174950188 | L142: 0.009644020277 | M142: 0.009549550607 | N142: 0.1515944162 | P142: 0.007401490476 | Q142: 0.1174950188
B143: 2016-10-07 | C143: 128.99 | E143: 0.0019418984 | F143: 0.001940015353 | G143: =STDEV(E143:E163) -> 0.008991913771 | H143: 0.009036696978 | I143: 0.1427422059 | J143: 0.1434531173 | L143: 0.001940015353 | M143: 0.009520241502 | N143: 0.1511291486 | P143: 0.009036696978 | Q143: 0.1434531173
B144: 2016-10-06 | C144: 128.74 | E144: 0.002101657975 | F144: 0.002099452581 | G144: =STDEV(E144:E164) -> 0.009052534306 | H144: 0.009095861664 | I144: 0.1437045271 | J144: 0.1443923275 | L144: 0.002099452581 | M144: 0.009526513185 | N144: 0.1512287085 | P144: 0.009095861664 | Q144: 0.1443923275
B145: 2016-10-05 | C145: 128.47 | E145: 0.002184257742 | F145: 0.002181875719 | G145: =STDEV(E145:E165) -> 0.009348826852 | H145: 0.009389614954 | I145: 0.1484080254 | J145: 0.1490555164 | L145: 0.002181875719 | M145: 0.009652567623 | N145: 0.1532297607 | P145: 0.009389614954 | Q145: 0.1490555164
B146: 2016-10-04 | C146: 128.19 | E146: -0.004504154694 | F146: -0.004514328962 | G146: =STDEV(E146:E166) -> 0.01092008635 | H146: 0.01092360753 | I146: 0.1733509967 | J146: 0.1734068937 | L146: -0.004514328962 | M146: 0.009651242062 | N146: 0.153208718 | P146: 0.01092360753 | Q146: 0.1734068937
B147: 2016-10-03 | C147: 128.77 | E147: 0.003898027598 | F147: 0.003890449974 | G147: =STDEV(E147:E167) -> 0.01086187518 | H147: 0.01086701863 | I147: 0.172426923 | J147: 0.1725085728 | L147: 0.003890449974 | M147: 0.009614795089 | N147: 0.1526301403 | P147: 0.01086701863 | Q147: 0.1725085728
B148: 2016-09-30 | C148: 128.27 | E148: 0.001405261925 | F148: 0.001404275469 | G148: =STDEV(E148:E168) -> 0.01084247376 | H148: 0.01084681923 | I148: 0.172118935 | J148: 0.1721879172 | L148: 0.001404275469 | M148: 0.009632461689 | N148: 0.1529105889 | P148: 0.01084681923 | Q148: 0.1721879172
B149: 2016-09-29 | C149: 128.09 | E149: -0.00882148108 | F149: -0.008860620694 | G149: =STDEV(E149:E169) -> 0.01084600546 | H149: 0.01085054921 | I149: 0.172174999 | J149: 0.1722471288 | L149: -0.008860620694 | M149: 0.009672952003 | N149: 0.1535533527 | P149: 0.01085054921 | Q149: 0.1722471288
B150: 2016-09-28 | C150: 129.23 | E150: 0.004196130235 | F150: 0.004187351032 | G150: =STDEV(E150:E170) -> 0.01072161543 | H150: 0.01072574956 | I150: 0.1702003685 | J150: 0.1702659958 | L150: 0.004187351032 | M150: 0.00958620924 | N150: 0.152176354 | P150: 0.01072574956 | Q150: 0.1702659958
B151: 2016-09-27 | C151: 128.69 | E151: 0.01083968266 | F151: 0.01078135443 | G151: =STDEV(E151:E171) -> 0.01100015538 | H151: 0.01100238342 | I151: 0.1746220531 | J151: 0.1746574222 | L151: 0.01078135443 | M151: 0.009642913238 | N151: 0.1530765021 | P151: 0.01100238342 | Q151: 0.1746574222
B152: 2016-09-26 | C152: 127.31 | E152: -0.00507971241 | F152: -0.005092658008 | G152: =STDEV(E152:E172) -> 0.01091641068 | H152: 0.01091936212 | I152: 0.1732926471 | J152: 0.1733394999 | L152: -0.005092658008 | M152: 0.009609622826 | N152: 0.1525480331 | P152: 0.01091936212 | Q152: 0.1733394999
B153: 2016-09-23 | C153: 127.96 | E153: -0.01629766298 | F153: -0.01643193072 | G153: =STDEV(E153:E173) -> 0.01082235779 | H153: 0.01082712396 | I153: 0.1717996039 | J153: 0.1718752644 | L153: -0.01643193072 | M153: 0.009550127166 | N153: 0.1516035688 | P153: 0.01082712396 | Q153: 0.1718752644
B154: 2016-09-22 | C154: 130.08 | E154: 0.001077420348 | F154: 0.001076840347 | G154: =STDEV(E154:E174) -> 0.01022743731 | H154: 0.01022406783 | I154: 0.162355534 | J154: 0.1623020451 | L154: 0.001076840347 | M154: 0.008980842403 | N154: 0.1425664534 | P154: 0.01022406783 | Q154: 0.1623020451
B155: 2016-09-21 | C155: 129.94 | E155: 0.01010572139 | F155: 0.01005500002 | G155: =STDEV(E155:E175) -> 0.01022478317 | H155: 0.01022158983 | I155: 0.1623134009 | J155: 0.1622627082 | L155: 0.01005500002 | M155: 0.008995325067 | N155: 0.1427963585 | P155: 0.01022158983 | Q155: 0.1622627082
B156: 2016-09-20 | C156: 128.64 | E156: -7.773027594e-05 | F156: -7.77332971e-05 | G156: =STDEV(E156:E176) -> 0.0100845013 | H156: 0.01008177731 | I156: 0.1600864952 | J156: 0.1600432532 | L156: -7.77332971e-05 | M156: 0.008853641529 | N156: 0.1405472021 | P156: 0.01008177731 | Q156: 0.1600432532
B157: 2016-09-19 | C157: 128.65 | E157: -0.003254048191 | F157: -0.003259354119 | G157: =STDEV(E157:E177) -> 0.01013008698 | H157: 0.01012678437 | I157: 0.1608101455 | J157: 0.1607577181 | L157: -0.003259354119 | M157: 0.008851767649 | N157: 0.1405174552 | P157: 0.01012678437 | Q157: 0.1607577181
B158: 2016-09-16 | C158: 129.07 | E158: 0.005609661083 | F158: 0.00559398553 | G158: =STDEV(E158:E178) -> 0.01014171917 | H158: 0.01013836316 | I158: 0.1609948008 | J158: 0.1609415258 | L158: 0.00559398553 | M158: 0.008868836923 | N158: 0.1407884215 | P158: 0.01013836316 | Q158: 0.1609415258
B159: 2016-09-15 | C159: 128.35 | E159: 0.004539406746 | F159: 0.004529134714 | G159: =STDEV(E159:E179) -> 0.01022088756 | H159: 0.0102173634 | I159: 0.1622515599 | J159: 0.1621956157 | L159: 0.004529134714 | M159: 0.009187988057 | N159: 0.1458547887 | P159: 0.0102173634 | Q159: 0.1621956157
B160: 2016-09-14 | C160: 127.77 | E160: 0.004402169641 | F160: 0.004392508435 | G160: =STDEV(E160:E180) -> 0.01030732375 | H160: 0.01030199405 | I160: 0.1636236919 | J160: 0.1635390856 | L160: 0.004392508435 | M160: 0.009239757076 | N160: 0.1466765964 | P160: 0.01030199405 | Q160: 0.1635390856
B161: 2016-09-13 | C161: 127.21 | E161: -0.01150050509 | F161: -0.01156714734 | G161: =STDEV(E161:E181) -> 0.0104809956 | H161: 0.01047418819 | I161: 0.1663806472 | J161: 0.1662725828 | L161: -0.01156714734 | M161: 0.009436698947 | N161: 0.1498029517 | P161: 0.01047418819 | Q161: 0.1662725828
B162: 2016-09-12 | C162: 128.69 | E162: 0.01250983478 | F162: 0.01243223331 | G162: =STDEV(E162:E182) -> 0.0100933279 | H162: 0.0100849395 | I162: 0.1602266131 | J162: 0.1600934515 | L162: 0.01243223331 | M162: 0.009150378234 | N162: 0.1452577513 | P162: 0.0100849395 | Q162: 0.1600934515
B163: 2016-09-09 | C163: 127.1 | E163: -0.02433407538 | F163: -0.02463504151 | G163: =STDEV(E163:E183) -> 0.009772803684 | H163: 0.009765632955 | I163: 0.155138449 | J163: 0.1550246172 | L163: -0.02463504151 | M163: 0.009066826464 | N163: 0.143931408 | P163: 0.009765632955 | Q163: 0.1550246172
B164: 2016-09-08 | C164: 130.27 | E164: -0.005951926746 | F164: -0.00596971006 | G164: =STDEV(E164:E184) -> 0.007920224365 | H164: 0.007867647069 | I164: 0.125729664 | J164: 0.1248950253 | L164: -0.00596971006 | M164: 0.0080204535 | N164: 0.1273207522 | P164: 0.007867647069 | Q164: 0.1248950253
B165: 2016-09-07 | C165: 131.05 | E165: 0.0101749788 | F165: 0.01012356219 | G165: =STDEV(E165:E185) -> 0.00775762704 | H165: 0.007703925745 | I165: 0.1231485115 | J165: 0.1222960298 | L165: 0.01012356219 | M165: 0.008361269066 | N165: 0.1327310316 | P165: 0.007703925745 | Q165: 0.1222960298
B166: 2016-09-06 | C166: 129.73 | E166: 0.0254525334 | F166: 0.02513401116 | G166: =STDEV(E166:E186) -> 0.007540955462 | H166: 0.00748669216 | I166: 0.1197089568 | J166: 0.1188475536 | L166: 0.02513401116 | M166: 0.008305438134 | N166: 0.131844743 | P166: 0.00748669216 | Q166: 0.1188475536
B167: 2016-09-02 | C167: 126.51 | E167: 0.002694776888 | F167: 0.002691152487 | G167: =STDEV(E167:E187) -> 0.005380210569 | H167: 0.00537083978 | I167: 0.085408195 | J167: 0.08525943834 | L167: 0.002691152487 | M167: 0.007115142259 | N167: 0.1129493818 | P167: 0.00537083978 | Q167: 0.08525943834
B168: 2016-09-01 | C168: 126.17 | E168: 0.0003964478275 | F168: 0.0003963692628 | G168: =STDEV(E168:E188) -> 0.006211984432 | H168: 0.006192897509 | I168: 0.09861219573 | J168: 0.09830920022 | L168: 0.0003963692628 | M168: 0.007118959026 | N168: 0.1130099711 | P168: 0.006192897509 | Q168: 0.09830920022
B169: 2016-08-31 | C169: 126.12 | E169: 0.00222504768 | F169: 0.002222575927 | G169: =STDEV(E169:E189) -> 0.006352547209 | H169: 0.006333621993 | I169: 0.1008435606 | J169: 0.1005431321 | L169: 0.002222575927 | M169: 0.007464215554 | N169: 0.1184907485 | P169: 0.006333621993 | Q169: 0.1005431321
B170: 2016-08-30 | C170: 125.84 | E170: -0.005531847637 | F170: -0.005547204969 | G170: =STDEV(E170:E190) -> 0.006782043705 | H170: 0.006766320734 | I170: 0.1076616061 | J170: 0.1074120117 | L170: -0.005547204969 | M170: 0.00766914068 | N170: 0.1217438341 | P170: 0.006766320734 | Q170: 0.1074120117
B171: 2016-08-29 | C171: 126.54 | E171: 0.01264404609 | F171: 0.01256477763 | G171: =STDEV(E171:E191) -> 0.006650116783 | H171: 0.006634671503 | I171: 0.1055673312 | J171: 0.105322145 | L171: 0.01256477763 | M171: 0.007719949128 | N171: 0.1225503932 | P171: 0.006634671503 | Q171: 0.105322145
B172: 2016-08-26 | C172: 124.96 | E172: 0.008636693841 | F172: 0.008599610964 | G172: =STDEV(E172:E192) -> 0.006395098387 | H172: 0.006385719523 | I172: 0.1015190397 | J172: 0.1013701548 | L172: 0.008599610964 | M172: 0.008274971664 | N172: 0.1313611028 | P172: 0.006385719523 | Q172: 0.1013701548
B173: 2016-08-25 | C173: 123.89 | E173: 0.003320375769 | F173: 0.003314875494 | G173: =STDEV(E173:E193) -> 0.006794641067 | H173: 0.006780068075 | I173: 0.1078615831 | J173: 0.107630244 | L173: 0.003314875494 | M173: 0.008252746019 | N173: 0.1310082816 | P173: 0.006780068075 | Q173: 0.107630244
B174: 2016-08-24 | C174: 123.48 | E174: -0.007156066576 | F174: -0.007181794032 | G174: =STDEV(E174:E194) -> 0.007752397642 | H174: 0.007725567309 | I174: 0.1230654973 | J174: 0.122639579 | L174: -0.007181794032 | M174: 0.008261430003 | N174: 0.1311461356 | P174: 0.007725567309 | Q174: 0.122639579
B175: 2016-08-23 | C175: 124.37 | E175: 0.00177204994 | F175: 0.001770481711 | G175: =STDEV(E175:E195) -> 0.007597982997 | H175: 0.007570095908 | I175: 0.1206142409 | J175: 0.120171547 | L175: 0.001770481711 | M175: 0.008373279828 | N175: 0.1329216965 | P175: 0.007570095908 | Q175: 0.120171547
B176: 2016-08-22 | C176: 124.15 | E176: 0.004775008093 | F176: 0.004763643904 | G176: =STDEV(E176:E196) -> 0.007650212566 | H176: 0.007622799113 | I176: 0.1214433596 | J176: 0.1210081845 | L176: 0.004763643904 | M176: 0.008376456766 | N176: 0.1329721288 | P176: 0.007622799113 | Q176: 0.1210081845
B177: 2016-08-19 | C177: 123.56 | E177: -0.00282463078 | F177: -0.002828627578 | G177: =STDEV(E177:E197) -> 0.007622066138 | H177: 0.007594461192 | I177: 0.1209965489 | J177: 0.1205583339 | L177: -0.002828627578 | M177: 0.008384595494 | N177: 0.1331013271 | P177: 0.007594461192 | Q177: 0.1205583339
B178: 2016-08-18 | C178: 123.91 | E178: -0.003698641151 | F178: -0.003705498037 | G178: =STDEV(E178:E198) -> 0.008015846822 | H178: 0.007992315281 | I178: 0.1272476234 | J178: 0.1268740718 | L178: -0.003705498037 | M178: 0.008538120159 | N178: 0.1355384556 | P178: 0.007992315281 | Q178: 0.1268740718
B179: 2016-08-17 | C179: 124.37 | E179: 0.008678021087 | F179: 0.008640583495 | G179: =STDEV(E179:E199) -> 0.008233847703 | H179: 0.008210113365 | I179: 0.1307082801 | J179: 0.1303315092 | L179: 0.008640583495 | M179: 0.008649348249 | N179: 0.1373041468 | P179: 0.008210113365 | Q179: 0.1303315092
B180: 2016-08-16 | C180: 123.3 | E180: -0.004842615012 | F180: -0.004854378465 | G180: =STDEV(E180:E200) -> 0.008316467901 | H180: 0.008292070163 | I180: 0.1320198351 | J180: 0.131632533 | L180: -0.004854378465 | M180: 0.009419106434 | N180: 0.1495236792 | P180: 0.008292070163 | Q180: 0.131632533
B181: 2016-08-15 | C181: 123.9 | E181: -0.007847533632 | F181: -0.007878487572 | G181: =STDEV(E181:E201) -> 0.009233561877 | H181: 0.009193018349 | I181: 0.1465782506 | J181: 0.1459346421 | L181: -0.007878487572 | M181: 0.009349651552 | N181: 0.1484211171 | P181: 0.009193018349 | Q181: 0.1459346421
B182: 2016-08-12 | C182: 124.88 | E182: -0.0001601281025 | F182: -0.0001601409244 | G182: =STDEV(E182:E202) -> 0.009034742446 | H182: 0.008992714387 | I182: 0.14342209 | J182: 0.1427549153 | L182: -0.0001601409244 | M182: 0.009160182721 | N182: 0.1454133927 | P182: 0.008992714387 | Q182: 0.1427549153
B183: 2016-08-11 | C183: 124.9 | E183: 0.0001601537476 | F183: 0.0001601409244 | G183: =STDEV(E183:E203) -> 0.009008816204 | H183: 0.008967693565 | I183: 0.1430105237 | J183: 0.142357722 | L183: 0.0001601409244 | M183: 0.00914863672 | N183: 0.1452301056 | P183: 0.008967693565 | Q183: 0.142357722
B184: 2016-08-10 | C184: 124.88 | E184: -0.001439309132 | F184: -0.001440345932 | G184: =STDEV(E184:E204) -> 0.009428370586 | H184: 0.009389971722 | I184: 0.149670743 | J184: 0.14906118 | L184: -0.001440345932 | M184: 0.009305726826 | N184: 0.1477238337 | P184: 0.009389971722 | Q184: 0.14906118
B185: 2016-08-09 | C185: 125.06 | E185: -0.001596678908 | F185: -0.001597954958 | G185: =STDEV(E185:E205) -> 0.009394376317 | H185: 0.00935629343 | I185: 0.1491311007 | J185: 0.1485265537 | L185: -0.001597954958 | M185: 0.01076524633 | N185: 0.1708929875 | P185: 0.00935629343 | Q185: 0.1485265537
B186: 2016-08-08 | C186: 125.26 | E186: 0.0008789452657 | F186: 0.0008785592195 | G186: =STDEV(E186:E206) -> 0.009351880622 | H186: 0.009315134677 | I186: 0.1484565025 | J186: 0.1478731787 | L186: 0.0008785592195 | M186: 0.01227607741 | N186: 0.1948766874 | P186: 0.009315134677 | Q186: 0.1478731787
B187: 2016-08-05 | C187: 125.15 | E187: 0.006352524928 | F187: 0.006332432687 | G187: =STDEV(E187:E207) -> 0.009527192024 | H187: 0.009490723232 | I187: 0.1512394847 | J187: 0.1506605606 | L187: 0.006332432687 | M187: 0.01344822194 | N187: 0.2134839049 | P187: 0.009490723232 | Q187: 0.1506605606
B188: 2016-08-04 | C188: 124.36 | E188: 0.0151008081 | F188: 0.01498792588 | G188: =STDEV(E188:E208) -> 0.009800073391 | H188: 0.009762895038 | I188: 0.1555713421 | J188: 0.1549811541 | L188: 0.01498792588 | M188: 0.01350207309 | N188: 0.2143387654 | P188: 0.009762895038 | Q188: 0.1549811541
B189: 2016-08-03 | C189: 122.51 | E189: -0.00471199935 | F189: -0.004723135816 | G189: =STDEV(E189:E209) -> 0.01048188325 | H189: 0.01042886788 | I189: 0.1663947381 | J189: 0.1655531453 | L189: -0.004723135816 | M189: 0.01336337974 | N189: 0.2121370768 | P189: 0.01042886788 | Q189: 0.1655531453
B190: 2016-08-02 | C190: 123.09 | E190: -0.009814174242 | F190: -0.009862650681 | G190: =STDEV(E190:E210) -> 0.01038332333 | H190: 0.01033024471 | I190: 0.1648301478 | J190: 0.1639875509 | L190: -0.009862650681 | M190: 0.0133478583 | N190: 0.2118906816 | P190: 0.01033024471 | Q190: 0.1639875509
B191: 2016-08-01 | C191: 124.31 | E191: 0.002985315475 | F191: 0.00298086827 | G191: =STDEV(E191:E211) -> 0.009977806579 | H191: 0.009921797752 | I191: 0.158392769 | J191: 0.1575036565 | L191: 0.00298086827 | M191: 0.01313385513 | N191: 0.2084934866 | P191: 0.009921797752 | Q191: 0.1575036565
B192: 2016-07-29 | C192: 123.94 | E192: -0.00848 | F192: -0.008516159768 | G192: =STDEV(E192:E212) -> 0.009997142456 | H192: 0.009940693178 | I192: 0.1586997166 | J192: 0.157803612 | L192: -0.008516159768 | M192: 0.01342489794 | N192: 0.213113648 | P192: 0.009940693178 | Q192: 0.157803612
B193: 2016-07-28 | C193: 125 | E193: 0.01345873196 | F193: 0.01336896774 | G193: =STDEV(E193:E213) -> 0.009753822027 | H193: 0.009696103853 | I193: 0.1548371245 | J193: 0.1539208769 | L193: 0.01336896774 | M193: 0.01328758831 | N193: 0.2109339251 | P193: 0.009696103853 | Q193: 0.1539208769
B194: 2016-07-27 | C194: 123.34 | E194: 0.01748886322 | F194: 0.01733769304 | G194: =STDEV(E194:E214) -> 0.01154435004 | H194: 0.01143371556 | I194: 0.1832608755 | J194: 0.1815046077 | L194: 0.01733769304 | M194: 0.01317779302 | N194: 0.2091909789 | P194: 0.01143371556 | Q194: 0.1815046077
B195: 2016-07-26 | C195: 121.22 | E195: -0.003370878895 | F195: -0.003376573107 | G195: =STDEV(E195:E215) -> 0.01336603736 | H195: 0.01331147777 | I195: 0.2121792652 | J195: 0.2113131586 | L195: -0.003376573107 | M195: 0.01293024038 | N195: 0.2052612026 | P195: 0.01331147777 | Q195: 0.2113131586
B196: 2016-07-25 | C196: 121.63 | E196: 0.00520661157 | F196: 0.005193104034 | G196: =STDEV(E196:E216) -> 0.01481609619 | H196: 0.01479353141 | I196: 0.2351982356 | J196: 0.2348400307 | L196: 0.005193104034 | M196: 0.01369885639 | N196: 0.2174626036 | P196: 0.01479353141 | Q196: 0.2348400307
B197: 2016-07-22 | C197: 121 | E197: 0.003233562723 | F197: 0.003228346002 | G197: =STDEV(E197:E217) -> 0.0148991763 | H197: 0.01487738186 | I197: 0.2365170914 | J197: 0.2361711154 | L197: 0.003228346002 | M197: 0.0140595684 | N197: 0.2231887291 | P197: 0.01487738186 | Q197: 0.2361711154
B198: 2016-07-21 | C198: 120.61 | E198: =C198/C199-1 -> -0.01074475066 | F198: =LN(C198/C199) -> -0.01080289234 | G198: =STDEV(E198:E218) -> 0.01497899736 | H198: 0.01495482573 | I198: =G198*SQRT(252) -> 0.2377842115 | J198: =H198*SQRT(252) -> 0.2374004986 | L198: =LN(C198/C199) -> -0.01080289234 | M198: =STDEV(L198:L227) -> 0.01405216588 | N198: =M198*SQRT(252) -> 0.2230712179 | P198: =STDEV(L198:L218) -> 0.01495482573 | Q198: =P198*SQRT(252) -> 0.2374004986
B199: 2016-07-20 | C199: 121.92 | E199: 0.01086145427 | F199: 0.01080289234 | G199: =STDEV(E199:E219) -> 0.01471281988 | H199: 0.01469201524 | I199: 0.2335587749 | J199: 0.2332285114 | L199: 0.01080289234 | M199: 0.01390799088 | N199: 0.2207825107 | P199: 0.01469201524 | Q199: 0.2332285114
B200: 2016-07-19 | C200: 120.61 | E200: 0.01038786965 | F200: 0.01033428649 | G200: =STDEV(E200:E220) -> 0.0146177105 | H200: 0.01459542347 | I200: 0.2320489603 | J200: 0.2316951646 | L200: 0.01033428649 | M200: 0.01389757963 | N200: 0.2206172371 | P200: 0.01459542347 | Q200: 0.2316951646
B201: 2016-07-18 | C201: 119.37 | E201: 0.02147869245 | F201: 0.02125127598 | G201: =STDEV(E201:E221) -> 0.01488029564 | H201: 0.01485531036 | I201: 0.2362173701 | J201: 0.2358207412 | L201: 0.02125127598 | M201: 0.0137808148 | N201: 0.218763653 | P201: 0.01485531036 | Q201: 0.2358207412
... 8205 more rows
